Cogmind - Beta 10.2 @@@ ROGUE MODE // 2021.07.21 @ 10:57:43 Player: Man Suit Result: Destroyed by B-99 Colossus with Multirail Performance ------------- Evolutions (9) 4500 Regions Visited (23) 4600 Robots Destroyed (222) 1110 Value Destroyed (17253) 17253 Prototype IDs (38) 760 Alien Tech Used (0) 0 Bonus (7750) 7750 TOTAL SCORE: 35973 Bonus ------- High Alert Combat Kills 1498 Follower Combat Kills 4264 Entered Garrisons 1600 Used RIF Installer 4000 Aligned with FarCom 300 Friendly Fire -3912 Cogmind --------- Core Integrity 0/1600 Matter 23/300 Energy 189/190 System Corruption 17% Temperature Cool (167) Movement Core (250) Ox4 Location -1/Access Parts ------- > --- POWER (1) -------- Light Quantum Reactor > --- PROPULSION (3) --- (None) > --- UTILITY (19) ----- Experimental Signal Interpreter Advanced Targeting Computer Advanced Target Analyzer Advanced Target Analyzer Armor Integrity Analyzer Relay Coupler [Swarmer] (46) Relay Coupler [Swarmer] (32) Relay Coupler [Swarmer] (56) Relay Coupler [Grunt] (6) Relay Coupler [Brawler] (31) Relay Coupler [Duelist] (36) Relay Coupler [Duelist] (22) Relay Coupler [Sentry] (1) > --- WEAPON (2) ------- (None) > --- INVENTORY (4) ---- Relay Coupler [Demolisher] (26) Advanced Remote Datajack Force Lance Peak State ------------ > --- POWER ------------ Reinforced Quantum Reactor > --- PROPULSION ------- Biometal Heavy Treads Centrium Wheel > --- UTILITY ---------- High-capacity Storage Unit Advanced Terrain Scan Processor Antimissile System Relay Coupler [NC] Relay Coupler [ARC] Relay Coupler [Swarmer] Relay Coupler [Grunt] Relay Coupler [Brawler] Relay Coupler [Duelist] Relay Coupler [Sentry] Relay Coupler [Demolisher] Relay Coupler [Specialist] Relay Coupler [Specialist] Relay Coupler [Hunter] Relay Coupler [Hunter] Relay Coupler [Hunter] System Restoration Module Advanced Recalibrator Advanced Field Recycling Unit > --- WEAPON ----------- Advanced Remote Datajack Force Lance > --- INVENTORY -------- Improved Quantum Reactor Relay Coupler [NC] Relay Coupler [Swarmer] Relay Coupler [Swarmer] Relay Coupler [Sentry] Relay Coupler [Sentry] Relay Coupler [Sentry] Relay Coupler [Demolisher] Relay Coupler [Demolisher] Relay Coupler [Specialist] Relay Coupler [Hunter] Force Lance [Rating: 139] Favorites ----------- Power Reinforced Deuterium Engine Engine Reinforced Deuterium Engine Power Core Light Nuclear Core Reactor Light Quantum Reactor Propulsion Armored Wheel Treads Medium Treads Leg Biometal Leg Wheel Armored Wheel Hover Unit Improved Antigrav System Flight Unit Xenon Bombardment Thruster Utility Humpback Device Long-range Terrain Scanner Storage Humpback Processor Advanced Terrain Scan Processor Hackware Relay Coupler [Swarmer] Protection Advanced Powered Armor Weapon Power Sword Energy Gun EM Pulse Gun Ballistic Gun Heavy Machine Gun Ballistic Cannon Hypervelocity Mass Driver Launcher Grenade Launcher Special Weapon Remote Datajack Slashing Weapon Power Sword Piercing Weapon Force Lance Special Melee Weapon Improved Datajack Build | -11 -10 -10 -10 -9 -8 -8 -8 -7 -7 -7 -7 -6 -6 -5 -5 -4 -4 -3 -3 -2 -1 -1 -1 ------- Run | Scr Mat Min Exi Min Mat Gar Mat Fac Gar Fac Gar Fac Gar Fac Gar Fac Gar Res Gar Res Acc Gar Acc Slots Evolved 18 | . . . . . 4 . . 2 . . . 2 . 2 . 2 . 2 . 2 2 . . Power . | . . . . . . . . . . . . . . . . . . . . . . . . Propulsion 1 | . . . . . . . . 1 . . . . . . . . . . . . . . . Utility 17 | . . . . . 4 . . 1 . . . 2 . 2 . 2 . 2 . 2 2 . . Weapon . | . . . . . . . . . . . . . . . . . . . . . . . . Parts Attached 711 | 6 4 8 1 3 3 29 45 22 51 10 27 13 41 18 42 26 35 38 26 42 21 100 100 Power 38 | 1 . 1 . . . 3 2 2 4 1 . . 2 . 2 2 . 1 . 4 . 6 7 Engine 14 | 1 . . . . . 2 2 1 1 1 . . 2 . 2 2 . . . . . . . Core 6 | . . 1 . . . 1 . 1 3 . . . . . . . . . . . . . . Reactor 18 | . . . . . . . . . . . . . . . . . . 1 . 4 . 6 7 Propulsion 100 | 2 . 3 . 1 1 6 11 5 11 1 4 . 7 1 5 . 2 2 2 3 1 22 10 Treads 34 | . . . . . . 5 6 5 3 . . . . . . . . . . . 1 5 9 Leg 13 | 2 . 1 . . . . . . . . . . . . . . . . . . . 10 . Wheel 45 | . . 2 . 1 1 1 5 . 8 1 4 . 7 1 5 . 2 2 2 3 . . . Hover 3 | . . . . . . . . . . . . . . . . . . . . . . 3 . Flight 5 | . . . . . . . . . . . . . . . . . . . . . . 4 1 Utility 286 | 1 1 2 1 . 2 8 13 7 13 4 8 8 20 11 23 15 19 21 17 26 11 28 27 Device 100 | . . . . . 1 2 . 1 6 1 1 4 6 5 11 8 10 8 7 13 5 4 7 Storage 22 | 1 1 2 1 . 1 . 1 . . . . 1 1 2 . 1 2 . . 4 2 1 1 Processor 20 | . . . . . . 1 1 2 . . . . . . . . . . . . . 8 8 Hackware 77 | . . . . . . 3 6 . 3 2 6 2 6 1 4 2 4 7 6 5 4 14 2 Protection 67 | . . . . . . 2 5 4 4 1 1 1 7 3 8 4 3 6 4 4 . 1 9 Artifact . | . . . . . . . . . . . . . . . . . . . . . . . . Weapon 287 | 2 3 2 . 2 . 12 19 8 23 4 15 5 12 6 12 9 14 14 7 9 9 44 56 Energy Gun 11 | 2 1 1 . . . 3 . . . . . . . . . . . . . . . 4 . Energy Cannon . | . . . . . . . . . . . . . . . . . . . . . . . . Ballistic Gun 45 | . . . . 2 . 2 . . . . . . . . . . . . . . . 24 17 Ballistic Cannon 16 | . . . . . . . . . . . . . . . . . . . . . . . 16 Launcher 11 | . 2 1 . . . . . . 2 . 2 . . . . . . . . . . . 4 Special Weapon 99 | . . . . . . . . 2 9 2 5 3 6 3 6 6 7 7 3 5 4 12 19 Impact Weapon . | . . . . . . . . . . . . . . . . . . . . . . . . Slashing Weapon 58 | . . . . . . 2 6 3 11 2 8 2 6 3 6 3 5 . . . . 1 . Piercing Weapon 35 | . . . . . . 3 5 1 1 . . . . . . . 2 7 4 4 5 3 . Special Melee Weapon 12 | . . . . . . 2 8 2 . . . . . . . . . . . . . . . Unidentified Prototypes 4 | . . . . . . . . 1 . . . . . . . . . . . . . 1 2 Parts Lost 103 | . . . . 2 . 6 5 . . . 1 . . 2 . 1 1 4 . 15 4 46 16 Power 5 | . . . . . . 1 . . . . . . . . . . . . . 1 . 3 . Propulsion 27 | . . . . . . 3 2 . . . . . . 1 . . . 1 . 4 . 13 3 Utility 48 | . . . . . . 1 3 . . . . . . 1 . 1 1 3 . 10 4 15 9 Weapon 23 | . . . . 2 . 1 . . . . 1 . . . . . . . . . . 15 4 Highest Loss Streak 14 | . . . . 2 . 4 4 . . . 1 . . 2 . 1 1 3 . 12 2 14 6 Average Slot Usage (%) 87 | . 97 100 86 84 55 74 87 91 91 91 91 91 92 90 87 88 88 87 89 82 83 72 91 Engine 3 | . 14 3 . . . 5 9 2 4 7 7 6 6 5 4 5 5 2 . . . . . Core 1 | . . 10 14 14 9 3 . 4 2 . . . . . . . . . . . . . . Reactor 1 | . . . . . . . . . . . . . . . . . . 1 4 4 4 3 3 Treads 3 | . . . . . . 10 9 14 10 . . . . . . . . . . . 3 5 9 Wheel 12 | . . 19 28 28 18 7 8 6 11 22 23 20 20 17 17 15 15 13 14 11 4 1 . Device 4 | . . . . . . 7 . 4 2 3 . 6 7 8 3 4 7 6 5 5 14 4 2 Storage 8 | . 25 28 15 14 10 9 8 7 7 7 7 7 7 11 11 9 10 9 9 11 4 4 1 Processor 7 | . . . . . . 2 6 11 15 15 7 6 6 5 5 5 5 4 4 4 3 9 14 Hackware 26 | . . . . . . 5 15 15 16 18 28 29 27 27 26 33 33 33 34 30 41 32 46 Protection 3 | . . . . . . 5 11 5 3 . 1 . 2 . 4 2 . 4 6 6 . 1 5 Energy Gun 1 | . 17 19 14 11 . 4 . . . . . . . . . . . . . . . . . Special Weapon 2 | . . . . . . . . 2 3 6 5 5 5 4 2 4 2 3 3 2 3 1 1 Slashing Weapon 4 | . . . . . . 2 6 11 8 7 8 6 6 5 7 5 5 . . . . . . Piercing Weapon 1 | . . . . . . 6 6 . 1 . . . . . . . 1 4 4 5 4 1 . Naked Turns . | . . . . . . . . . . . . . . . . . . . . . . . . Heaviest Build 322 | 13 18 50 90 90 88 93 100 116 103 104 119 176 125 191 211 211 198 251 261 322 178 113 100 Greatest Support 103 | 20 20 32 32 32 26 40 44 50 36 36 36 36 36 40 40 36 36 36 40 44 16 84 103 Greatest Overweight (x) 27 | . . 1 2 3 3 4 6 7 6 4 3 4 3 7 7 5 5 8 6 17 11 27 . Average Overweight (x) 3 | . . . 1 2 3 2 3 5 3 2 2 2 2 3 4 5 5 5 5 6 7 2 . Largest Inventory Capacity 64 | 6 8 16 24 24 44 24 24 24 24 24 24 44 30 44 44 44 44 44 44 64 32 18 10 Average Capacity 28 | 5 7 13 23 24 24 24 23 24 24 24 24 29 25 35 44 43 43 44 44 56 22 12 6 Most Carried 52 | 6 8 12 12 12 15 24 24 24 24 24 24 26 30 32 44 44 44 44 44 52 24 18 10 Average Carried 25 | 3 7 10 9 11 13 20 23 23 23 22 23 23 24 29 38 42 43 43 43 45 21 11 6 Final Capacity 44 | 6 8 16 24 24 24 24 24 24 24 24 24 24 30 44 44 44 44 44 44 24 18 4 10 Final Carried 44 | 6 8 12 12 11 15 24 24 24 24 24 24 24 30 29 44 44 44 42 44 24 17 4 10 Class Distribution -------------------- 35% | Botlord-Mutant 24% | Botlord-Assassin 22% | Bothacker-Mutant 8% | Bothacker-Assassin 5% | Hauler-Mutant Dominant Class ---------------- Mutant | -10/Materials Mutant | -10/Mines Hauler-Mutant | -10/Exiles Hauler-Mutant | -9/Mines Hauler-Mutant | -8/Materials Bothacker-Mutant | -8/Garrison Bothacker-Mutant | -8/Materials Bothacker-Assassin | -7/Factory Bothacker-Mutant | -7/Garrison Bothacker-Assassin | -7/Factory Bothacker-Mutant | -7/Garrison Bothacker-Mutant | -6/Factory Botlord-Mutant | -6/Garrison Botlord-Assassin | -5/Factory Botlord-Mutant | -5/Garrison Botlord-Assassin | -4/Factory Botlord-Assassin | -4/Garrison Botlord-Assassin | -3/Research Botlord-Assassin | -3/Garrison Botlord-Assassin | -2/Research Botlord-Assassin | -1/Access Botlord-Mutant | -1/Garrison Botlord-Mutant | -1/Access Resources | -11 -10 -10 -10 -9 -8 -8 -8 -7 -7 -7 -7 -6 -6 -5 -5 -4 -4 -3 -3 -2 -1 -1 -1 ----------- Run | Scr Mat Min Exi Min Mat Gar Mat Fac Gar Fac Gar Fac Gar Fac Gar Fac Gar Res Gar Res Acc Gar Acc Matter Collected 13553 | 220 15 215 10 77 . 425 469 265 789 88 581 173 682 221 553 441 567 607 615 444 382 2101 3613 Remotely . | . . . . . . . . . . . . . . . . . . . . . . . . Salvage Created 13180 | . 26 182 . 149 . 786 864 153 1175 88 545 145 747 188 693 336 605 479 281 498 406 791 4043 Parts 649 | . 6 14 . 13 . 47 34 13 41 11 18 9 20 13 19 24 23 33 10 49 31 27 194 Haulers Intercepted 4 | . . . . . . . . . . . . . . . . . . . . . . . 4 Recyclers Shooed 6 | . . . . . . . 1 . . . . . . . . . . . . . . . 5 Parts Field Recycled 4 | . . . . . . . . . . . . . . . . . . . . . 4 . . Retrieved Matter 144 | . . . . . . . . . . . . . . . . . . . . . 144 . . Parts Self-Destructed . | . . . . . . . . . . . . . . . . . . . . . . . . Prevented . | . . . . . . . . . . . . . . . . . . . . . . . . Kills | -11 -10 -10 -10 -9 -8 -8 -8 -7 -7 -7 -7 -6 -6 -5 -5 -4 -4 -3 -3 -2 -1 -1 -1 ------- Run | Scr Mat Min Exi Min Mat Gar Mat Fac Gar Fac Gar Fac Gar Fac Gar Fac Gar Res Gar Res Acc Gar Acc Combat Hostiles Destroyed 186 | . 3 4 . 7 . 23 13 2 21 2 5 3 5 4 5 5 7 5 2 8 5 9 48 Melee 94 | . . . . . . 10 13 2 11 2 5 3 5 4 5 5 7 5 2 8 5 2 . Guns 35 | . . 2 . 4 . 13 . . . . . . . . . . . . . . . 6 10 Cannons 38 | . . . . . . . . . . . . . . . . . . . . . . . 38 AOE 18 | . 3 2 . 3 . . . . 10 . . . . . . . . . . . . . . Classes Destroyed 17 | . 1 2 . 1 . 2 2 2 . . . . . . 1 . 1 . . . . 2 3 Worker 5 | . . . . . . . 4 . . . . . . . . . . . . . . . 1 Builder 2 | . . 1 . . . . . . . . . . . . . . . . . . . . 1 Tunneler 1 | . . . . 1 . . . . . . . . . . . . . . . . . . . Hauler 4 | . . . . . . . . . . . . . . . . . . . . . . . 4 Recycler 4 | . . . . . . . 2 . . . . . . . . . . . . . . . 2 Carrier 2 | . . . . . . . . . . . . . . . 2 . . . . . . . . Mechanic 1 | . . . . . . . . . . . . . . . . . . . . . . . 1 Operator 1 | . . . . . . . . . . . . . . . . . . . . . . . 1 Watcher 5 | . . . . . . . . 2 . . . . . . . 1 . . . . . 1 1 Swarmer 45 | . 3 . . 4 . 11 2 . 11 . 5 . 4 1 . . 2 . 1 . . . 1 Saboteur 1 | . . . . . . . . . . . . . . . . . . . . . . 1 . Grunt 46 | . . 4 . 3 . 6 3 . 10 . 1 1 2 . 4 . 2 1 2 . 1 2 4 Duelist 7 | . . . . . . 2 1 . . . 1 . . . . . . 1 1 . . 1 . Sentry 26 | . . . . . . 4 7 . 1 . . . 1 . 1 1 1 . . . . . 10 Hunter 18 | . . . . . . . . . . . . . . . . . 2 . . . . 2 14 Programmer 53 | . . . . . . . . 2 . 2 . 2 . 3 . 4 . 5 . 8 5 2 20 Behemoth 1 | . . . . . . . . . . . . . . . . . . . . . . 1 . Best Kill Streak 8 | . 3 3 . 4 . 4 2 2 8 1 1 1 1 2 1 2 2 3 1 3 2 1 6 Combat Bots Only 8 | . 3 2 . 3 . 4 2 1 8 1 1 1 1 2 1 2 2 3 1 3 2 1 6 Max Kills in Single Turn 4 | . 3 2 . 1 . 1 1 1 4 1 1 1 1 1 1 1 1 1 1 1 1 1 2 Gunslinging 1 | . . 1 . . . . . . . . . . . . . . . . . . . . . Exploded 4 | . 3 1 . 1 . . . . 4 . . . . . . . . . . . . . . Melee 1 | . . . . . . 1 1 1 1 1 1 1 1 1 1 1 1 1 1 1 1 1 . Uniques/NPCs Destroyed . | . . . . . . . . . . . . . . . . . . . . . . . . Combat | -11 -10 -10 -10 -9 -8 -8 -8 -7 -7 -7 -7 -6 -6 -5 -5 -4 -4 -3 -3 -2 -1 -1 -1 -------- Run | Scr Mat Min Exi Min Mat Gar Mat Fac Gar Fac Gar Fac Gar Fac Gar Fac Gar Res Gar Res Acc Gar Acc Damage Taken 25935 | . 54 93 . 214 . 1483 782 80 704 129 308 67 209 819 464 1009 313 1535 230 3666 964 6103 6709 Core 2912 | . . . . 63 . 304 146 16 112 29 34 23 20 42 47 63 32 113 . 258 92 1047 471 Absorbed by Shields 1301 | . . . . . . 8 . . . . 4 10 . . . . 24 35 54 287 . 61 818 Reduced by Siege Mode 185 | . . . . . . . . . . . . . . . . . . . . . . . 185 Core Remaining (%) 79 | 100 . . . 74 . . 18 . . . 72 . 94 . 91 . 91 . 91 82 . . . Volleys Fired 787 | . 4 6 . 9 . 39 . 7 31 27 29 19 44 3 19 18 16 38 23 11 23 176 245 Largest 2 | . 2 2 . 2 . 2 . 1 1 1 1 1 1 1 1 1 1 1 1 1 1 2 2 Hottest 132 | . 80 80 . 70 . 130 . 30 36 30 36 30 30 30 30 40 40 40 40 50 50 124 132 Shots Fired 1088 | . 5 12 . 15 . 76 . 7 31 27 29 19 44 3 19 18 16 38 23 11 23 278 394 Gun 436 | . 2 8 . 10 . 76 . . . . . . . . . . . . . . . 236 104 Cannon 250 | . . . . . . . . . . . . . . . . . . . . . . . 250 Launcher 36 | . 3 4 . 5 . . . . 18 . 3 . . . . . . . . . . . 3 Special 366 | . . . . . . . . 7 13 27 26 19 44 3 19 18 16 38 23 11 23 42 37 Kinetic 626 | . . . . 6 . 49 . . . . . . . . . . . . . . . 217 354 Thermal 41 | . . . . . . 27 . . . . . . . . . . . . . . . 14 . Explosive 33 | . 3 4 . 5 . . . . 18 . 3 . . . . . . . . . . . . Electromagnetic 22 | . 2 8 . 4 . . . . . . . . . . . . . . . . . 5 3 Robot Hit Streak 45 | . 1 7 . 2 . 11 . 4 9 9 12 5 14 1 6 10 5 7 22 28 17 45 31 Robot Miss Streak 5 | . 2 1 . 2 . 2 . 1 1 3 2 3 2 1 3 3 2 3 1 1 3 2 5 Penetration Max 1 | . . . . . . . . . . . . . . . . . . . . . . . 1 Secondary Targets 4 | . . 1 . . . 2 . . . . . . . . . . . . . . . . 1 Max Gunslinging Chain 1 | . . 1 . . . 1 . . . . . . . . . . . . . . . . 1 Shots Hit Robots 1218 | . 1 11 . 5 . 76 72 18 53 20 45 19 68 13 37 37 38 37 33 56 29 250 300 Core Hits 356 | . 3 11 . 10 . 30 18 4 34 2 11 3 14 7 9 9 10 8 6 14 9 39 105 Critical Hits 167 | . . . . . . . 1 . 1 . . 1 . . . . . 1 . 3 2 27 131 Critical Kills 51 | . . . . . . . 1 . . . . . . . . . . . . 1 1 3 45 Critical Parts Destroyed 101 | . . . . . . . . . 1 . . 1 . . . . . 1 . 2 1 11 84 Melee Attacks 852 | . . . . . . 57 141 47 79 24 37 16 56 38 56 46 49 48 33 74 40 11 . Thermal 3 | . . . . . . . . . . . . . . . . . . . . . . 3 . Impact . | . . . . . . . . . . . . . . . . . . . . . . . . Slashing 485 | . . . . . . 15 55 40 62 24 37 16 56 38 56 46 40 . . . . . . Piercing 317 | . . . . . . 36 50 2 17 . . . . . . . 9 48 33 74 40 8 . Sneak Attacks 113 | . . . . . . 6 35 6 5 . 6 3 7 1 17 3 12 2 8 . 2 . . Combat Hostiles 45 | . . . . . . 6 5 1 3 . 1 1 4 1 8 2 10 . 3 . . . . Follow-up Attacks 39 | . . . . . . 1 4 3 3 . . . 2 . 4 6 1 . 1 11 3 . . Damage Inflicted 34878 | . 130 287 . 169 . 1467 2378 424 3446 240 1670 476 2670 528 2194 1229 2705 617 768 1883 618 4897 6082 Guns 7817 | . . 106 . 61 . 694 . . . . . . . . . . . . . . . 4743 2213 Cannons 3754 | . . . . . . . . . . . . . . . . . . . . . . . 3754 Explosions 1704 | . 130 181 . 108 . . . . 1170 . . . . . . . . . . . . . 115 Melee 21603 | . . . . . . 773 2378 424 2276 240 1670 476 2670 528 2194 1229 2705 617 768 1883 618 154 . Ramming . | . . . . . . . . . . . . . . . . . . . . . . . . Kinetic 10763 | . . . . 25 . 456 . . . . . . . . . . . . . . . 4315 5967 Thermal 580 | . . . . . . 238 . . . . . . . . . . . . . . . 325 17 Explosive 1589 | . 130 181 . 108 . . . . 1170 . . . . . . . . . . . . . . Electromagnetic 343 | . . 106 . 36 . . . . . . . . . . . . . . . . . 103 98 Impact . | . . . . . . . . . . . . . . . . . . . . . . . . Slashing 15902 | . . . . . . 304 1514 424 2016 240 1670 476 2670 528 2194 1229 2637 . . . . . . Piercing 5701 | . . . . . . 469 864 . 260 . . . . . . . 68 617 768 1883 618 154 . Highest Corruption 40 | . . . . . . . 11 2 2 2 2 . . 5 5 9 9 12 12 40 5 2 17 Average Corruption 6 | . . . . . . . 11 1 2 2 2 . . 3 5 7 6 7 12 19 3 1 7 Corruption Purged 18 | . . . . . . . . . . . . . . . . . 9 . . . 7 2 . Effects 506 | . . . . . . . 44 3 20 17 9 . . 12 56 27 50 37 73 46 5 1 106 Message Errors 103 | . . . . . . . 11 2 5 8 2 . . 1 12 7 7 7 14 8 . . 19 Matter Fused 80 | . . . . . . . 7 . . . . . . 2 15 5 13 9 12 4 1 . 12 Heat Flow Errors 57 | . . . . . . . 3 . 4 2 1 . . 2 9 3 7 3 8 3 1 . 11 Energy Discharges 62 | . . . . . . . 3 . 3 5 3 . . 4 8 4 5 3 11 6 1 . 6 Parts Rejected 7 | . . . . . . . 1 . . . . . . . 1 1 . 1 1 . . . 2 Data Loss (minor) 65 | . . . . . . . 7 1 7 . 1 . . 1 7 5 9 5 7 3 . 1 11 Data Loss (major) 17 | . . . . . . . 1 . . . . . . 1 1 . 3 1 5 2 . . 3 Misfires 2 | . . . . . . . . . . . . . . . . . . . . . . . 2 Alerts 4 | . . . . . . . . . . . . . . . . . . 1 1 . . . 2 Misdirections 26 | . . . . . . . 5 . . . . . . . . . . 2 10 4 . . 5 Targeting Errors 81 | . . . . . . . 6 . 1 2 2 . . 1 3 2 6 5 4 16 2 . 31 Weapon Failures 2 | . . . . . . . . . . . . . . . . . . . . . . . 2 Overload Shots . | . . . . . . . . . . . . . . . . . . . . . . . . Overflow Damage 3007 | . . . . 13 . 174 439 71 415 . 164 192 379 24 375 61 325 . 188 125 53 9 . Projectiles . | . . . . . . . . . . . . . . . . . . . . . . . . Explosions 61 | . . . . 13 . . . . 48 . . . . . . . . . . . . . . Melee 2946 | . . . . . . 174 439 71 367 . 164 192 379 24 375 61 325 . 188 125 53 9 . Knockbacks 31 | . . . . . . . . . . . . . . . . . . . . . . . 31 Impact . | . . . . . . . . . . . . . . . . . . . . . . . . Kinetic 29 | . . . . . . . . . . . . . . . . . . . . . . . 29 Secondary 2 | . . . . . . . . . . . . . . . . . . . . . . . 2 Self-Inflicted Damage 222 | . 39 . . 67 . . . . 72 . 26 . . . . . . . . . . . 18 Shots 8 | . 1 . . 2 . . . . 2 . 1 . . . . . . . . . . . 2 Rammed . | . . . . . . . . . . . . . . . . . . . . . . . . Targets Rammed . | . . . . . . . . . . . . . . . . . . . . . . . . Kicked . | . . . . . . . . . . . . . . . . . . . . . . . . Crushed . | . . . . . . . . . . . . . . . . . . . . . . . . Highest Temperature 363 | . 18 63 . 51 . 105 229 18 268 135 214 5 15 250 246 265 253 230 271 192 194 76 363 Average Temperature 62 | . 12 32 . 19 . 32 95 9 77 21 31 4 5 118 86 101 90 58 83 47 35 24 66 Received Heat Transfer 1129 | . . 57 . 12 . 270 189 . 126 . 45 4 48 . 39 . 18 126 60 . . 69 66 Effects 8 | . . . . . . . . . . . . . . . 1 . 3 . . . . . 4 Energy Bleed 3 | . . . . . . . . . . . . . . . 1 . 1 . . . . . 1 Interference 5 | . . . . . . . . . . . . . . . . . 2 . . . . . 3 Siege Activations 19 | . . . . . . . . . . . . . . . . . . . . . . . 19 Total Turns 272 | . . . . . . . . . . . . . . . . . . . . . . . 272 Longest Duration 55 | . . . . . . . . . . . . . . . . . . . . . . . 55 Robots Corrupted 1 | . . . . . . . . . . . . . . . . . . . . . . 1 . Combat Hostiles 1 | . . . . . . . . . . . . . . . . . . . . . . 1 . Parts Fried 3 | . . . . . . . . . . . . . . . . . . . . . . 3 . Impact Corruptions . | . . . . . . . . . . . . . . . . . . . . . . . . Robots Melted . | . . . . . . . . . . . . . . . . . . . . . . . . Combat Hostiles . | . . . . . . . . . . . . . . . . . . . . . . . . Parts Melted 4 | . . . . . . 1 . . . . . . 1 1 . . . . . 1 . . . Heat Transferred 893 | . . . . . . 555 . . . . . . . . . . . . . . . 288 50 Parts Sabotaged 4 | . . . . . . . . . . . . . . . . . . . . . . 4 . Parts Stolen . | . . . . . . . . . . . . . . . . . . . . . . . . Parts Stripped . | . . . . . . . . . . . . . . . . . . . . . . . . Power Chain Reactions 1 | . . . . . . . . . . . . . . . . . . . . . . . 1 Missiles Intercepted . | . . . . . . . . . . . . . . . . . . . . . . . . Alert | -11 -10 -10 -10 -9 -8 -8 -8 -7 -7 -7 -7 -6 -6 -5 -5 -4 -4 -3 -3 -2 -1 -1 -1 ------- Run | Scr Mat Min Exi Min Mat Gar Mat Fac Gar Fac Gar Fac Gar Fac Gar Fac Gar Res Gar Res Acc Gar Acc Peak Influence 1035 | . 104 145 . 183 76 985 479 125 1035 594 415 268 535 321 354 274 668 439 393 307 79 377 976 Initial 543 | . . 40 . . 70 49 479 88 56 543 . 217 . 280 65 185 20 375 . 220 17 23 216 Average 235 | . 61 74 . 71 73 540 225 55 481 223 192 90 209 181 235 100 251 252 148 158 35 107 493 Maximum Alert Level 3 | . . . . . . 3 2 . 3 2 2 1 2 1 1 1 2 2 1 1 . 1 3 Low Security (%) 53 | 100 100 100 . 100 100 22 44 100 32 54 47 73 57 63 39 87 56 26 62 57 100 71 9 Level 1 31 | . . . . . . 7 52 . 13 22 42 26 32 36 60 12 27 71 37 42 . 28 38 Level 2 9 | . . . . . . 38 3 . 22 22 9 . 10 . . . 16 1 . . . . 27 Level 3 5 | . . . . . . 31 . . 31 . . . . . . . . . . . . . 23 Level 4 . | . . . . . . . . . . . . . . . . . . . . . . . . Level 5 . | . . . . . . . . . . . . . . . . . . . . . . . . High Security . | . . . . . . . . . . . . . . . . . . . . . . . . Max Security . | . . . . . . . . . . . . . . . . . . . . . . . . Squads Dispatched 71 | . 2 . . 1 . . 1 3 . 4 . 5 . 1 . 3 . 9 . 4 4 . 34 Investigation 5 | . . . . 1 . . 1 . . . . 2 . . . 1 . . . . . . . Extermination 28 | . . . . . . . . 1 . 3 . 3 . 1 . 2 . 3 . 4 2 . 9 Reinforcement 14 | . 2 . . . . . . 1 . 1 . . . . . . . 2 . . 1 . 7 Assault 2 | . . . . . . . . . . . . . . . . . . . . . . . 2 Garrison 22 | . . . . . . . . 1 . . . . . . . . . 4 . . 1 . 16 Intercept . | . . . . . . . . . . . . . . . . . . . . . . . . Construction Impeded 3 | . . . . . . . . . . . . . . . . . . . . . . . 3 Haulers Reinforced 4 | . . . . . . . . . . . . . . . . . . . . . . . 4 Alert ID Control Effect 45 | . . . . . . . . . . . . . . . . . 2 7 4 1 9 8 14 Stealth | -11 -10 -10 -10 -9 -8 -8 -8 -7 -7 -7 -7 -6 -6 -5 -5 -4 -4 -3 -3 -2 -1 -1 -1 --------- Run | Scr Mat Min Exi Min Mat Gar Mat Fac Gar Fac Gar Fac Gar Fac Gar Fac Gar Res Gar Res Acc Gar Acc Distress Signals 29 | . . . . . . . 7 . . 1 . 1 . 1 . . . 2 . 1 3 . 13 Communications Jammed . | . . . . . . . . . . . . . . . . . . . . . . . . Distress Signals . | . . . . . . . . . . . . . . . . . . . . . . . . Times Spotted 537 | . 5 4 . 6 . 34 42 6 38 7 27 9 41 7 20 14 28 37 23 13 23 59 94 Peak Tracking Total 11 | . 3 2 . 4 . 4 6 2 4 2 5 3 5 3 10 3 6 11 4 4 6 6 6 Tactical Retreats 57 | . . . . 1 . 2 5 . 8 . 2 . 11 . 2 . 5 . 8 . . 6 7 Traps | -11 -10 -10 -10 -9 -8 -8 -8 -7 -7 -7 -7 -6 -6 -5 -5 -4 -4 -3 -3 -2 -1 -1 -1 ------- Run | Scr Mat Min Exi Min Mat Gar Mat Fac Gar Fac Gar Fac Gar Fac Gar Fac Gar Res Gar Res Acc Gar Acc Traps Triggered 60 | . . . . . . 6 . 4 8 . 8 . 6 . 7 1 5 1 6 . . 6 2 Indirectly . | . . . . . . . . . . . . . . . . . . . . . . . . Trap Hack Attempts . | . . . . . . . . . . . . . . . . . . . . . . . . Triggered . | . . . . . . . . . . . . . . . . . . . . . . . . Disarmed 1 | . 1 . . . . . . . . . . . . . . . . . . . . . . Reprogrammed . | . . . . . . . . . . . . . . . . . . . . . . . . Reused . | . . . . . . . . . . . . . . . . . . . . . . . . Traps Extracted . | . . . . . . . . . . . . . . . . . . . . . . . . Installed . | . . . . . . . . . . . . . . . . . . . . . . . . Triggered 1 | . . . . 1 . . . . . . . . . . . . . . . . . . . Machines | -11 -10 -10 -10 -9 -8 -8 -8 -7 -7 -7 -7 -6 -6 -5 -5 -4 -4 -3 -3 -2 -1 -1 -1 ---------- Run | Scr Mat Min Exi Min Mat Gar Mat Fac Gar Fac Gar Fac Gar Fac Gar Fac Gar Res Gar Res Acc Gar Acc Machines Disabled 38 | . . . . . . 4 1 . 7 . 5 . 4 . 4 . 4 . 5 . . 3 1 Max in Single Turn 1 | . . . . . . 1 . . 1 . 1 . 1 . 1 . 1 . 1 . . 1 1 Garrison Relay 32 | . . . . . . 4 . . 4 . 4 . 4 . 4 . 4 . 5 . . 3 . Machines Sabotaged . | . . . . . . . . . . . . . . . . . . . . . . . . Garrisons Compromised . | . . . . . . . . . . . . . . . . . . . . . . . . Overloaded Fab Kills . | . . . . . . . . . . . . . . . . . . . . . . . . Fab Network Shutdowns . | . . . . . . . . . . . . . . . . . . . . . . . . Hacking | -11 -10 -10 -10 -9 -8 -8 -8 -7 -7 -7 -7 -6 -6 -5 -5 -4 -4 -3 -3 -2 -1 -1 -1 --------- Run | Scr Mat Min Exi Min Mat Gar Mat Fac Gar Fac Gar Fac Gar Fac Gar Fac Gar Res Gar Res Acc Gar Acc Machines Accessed 78 | . 4 . 5 1 2 . 17 5 . 4 . 7 . 8 . 10 . 10 . 4 1 . . Terminals 40 | . 4 . . 1 1 . 12 1 . 2 . 4 . 2 . 4 . 7 . 2 . . . Fabricators 13 | . . . . . . . . 2 . . . 1 . 4 . 4 . 1 . 1 . . . Repair Stations 4 | . . . . . . . 1 . . 1 . . . . . 1 . . . 1 . . . Recycling Units 4 | . . . . . . . 2 1 . . . 1 . . . . . . . . . . . Scanalyzers 4 | . . . . . . . 2 . . . . . . 1 . . . 1 . . . . . Garrison Access 8 | . . . . . 1 . . 1 . 1 . 1 . 1 . 1 . 1 . . 1 . . Total Hacks 238 | . 14 . 50 9 4 . 59 7 . 12 . 16 . 14 . 24 . 17 . 11 1 . . Successful 159 | . 8 . 50 3 3 . 39 4 . 8 . 8 . 10 . 12 . 5 . 8 1 . . Failed 79 | . 6 . . 6 1 . 20 3 . 4 . 8 . 4 . 12 . 12 . 3 . . . Catastrophic 13 | . . . . . 1 . 5 . . . . . . 1 . 3 . 3 . . . . . Database Lockouts . | . . . . . . . . . . . . . . . . . . . . . . . . Manual 80 | . 4 . 1 7 2 . 21 1 . 6 . 8 . 4 . 9 . 13 . 4 . . . Terminals 110 | . 14 . . 9 3 . 32 2 . 6 . 9 . 4 . 13 . 14 . 4 . . . Fabricators 27 | . . . . . . . . 2 . . . 4 . 7 . 8 . 1 . 5 . . . Repair Stations 11 | . . . . . . . 2 . . 5 . . . . . 2 . . . 2 . . . Recycling Units 6 | . . . . . . . 3 1 . . . 2 . . . . . . . . . . . Scanalyzers 25 | . . . . . . . 22 . . . . . . 2 . . . 1 . . . . . Garrison Access 9 | . . . . . 1 . . 2 . 1 . 1 . 1 . 1 . 1 . . 1 . . Terminal Hacks 82 | . 8 . 50 3 2 . 12 . . 1 . 2 . . . 3 . 1 . . . . . Record 53 | . 1 . 49 . 1 . 1 . . . . . . . . 1 . . . . . . . Part Schematic 1 | . . . . . . . . . . . . 1 . . . . . . . . . . . Robot Analysis 1 | . . . . . . . 1 . . . . . . . . . . . . . . . . Prototype ID Bank 2 | . 2 . . . . . . . . . . . . . . . . . . . . . . Branch Access Points 3 | . 1 . . 1 . . 1 . . . . . . . . . . . . . . . . Emergency Access Points 1 | . . . . . . . . . . . . 1 . . . . . . . . . . . Terminal Index 1 | . 1 . . . . . . . . . . . . . . . . . . . . . . Fabricator Index 1 | . . . . . . . . . . . . . . . . 1 . . . . . . . Alert Level 1 | . 1 . . . . . . . . . . . . . . . . . . . . . . Unreport Threat 4 | . . . . . . . 3 . . 1 . . . . . . . . . . . . . Locate Traps 4 | . . . . . . . 2 . . . . . . . . 1 . 1 . . . . . Disarm Traps 1 | . 1 . . . . . . . . . . . . . . . . . . . . . . Dispatch Records 1 | . . . . 1 . . . . . . . . . . . . . . . . . . . Security Status 1 | . . . . . . . 1 . . . . . . . . . . . . . . . . Zone Layout 6 | . 1 . . 1 1 . 3 . . . . . . . . . . . . . . . . EX-Prototype ID Bank 1 | . . . 1 . . . . . . . . . . . . . . . . . . . . Fabricator Hacks 17 | . . . . . . . . 1 . . . 2 . 5 . 4 . . . 5 . . . Load Schematic 7 | . . . . . . . . . . . . 1 . 3 . 2 . . . 1 . . . Build 10 | . . . . . . . . 1 . . . 1 . 2 . 2 . . . 4 . . . Repair Station Hacks 10 | . . . . . . . 2 . . 4 . . . . . 2 . . . 2 . . . Scan Component 5 | . . . . . . . 1 . . 2 . . . . . 1 . . . 1 . . . Repair 5 | . . . . . . . 1 . . 2 . . . . . 1 . . . 1 . . . Recycling Unit Hacks 3 | . . . . . . . 2 1 . . . . . . . . . . . . . . . Report Inventory 3 | . . . . . . . 2 1 . . . . . . . . . . . . . . . Scanalyzer 23 | . . . . . . . 21 . . . . . . 2 . . . . . . . . . Insert Component 11 | . . . . . . . 10 . . . . . . 1 . . . . . . . . . Analyze 12 | . . . . . . . 11 . . . . . . 1 . . . . . . . . . Garrison Access Hacks 9 | . . . . . 1 . . 2 . 1 . 1 . 1 . 1 . 1 . . 1 . . Unlock Access 8 | . . . . . 1 . . 1 . 1 . 1 . 1 . 1 . 1 . . 1 . . Coupler Status 1 | . . . . . . . . 1 . . . . . . . . . . . . . . . Unauthorized Hacks 15 | . . . . . . . 2 . . 2 . 3 . 2 . 2 . 3 . 1 . . . Terminals 15 | . . . . . . . 2 . . 2 . 3 . 2 . 2 . 3 . 1 . . . Assimilate 5 | . . . . . . . . . . 2 . 2 . . . . . . . 1 . . . Botnet 10 | . . . . . . . 2 . . . . 1 . 2 . 2 . 3 . . . . . Fabricators . | . . . . . . . . . . . . . . . . . . . . . . . . Repair Stations . | . . . . . . . . . . . . . . . . . . . . . . . . Recycling Units . | . . . . . . . . . . . . . . . . . . . . . . . . Scanalyzers . | . . . . . . . . . . . . . . . . . . . . . . . . Garrison Access . | . . . . . . . . . . . . . . . . . . . . . . . . Data Cores Recovered . | . . . . . . . . . . . . . . . . . . . . . . . . Used . | . . . . . . . . . . . . . . . . . . . . . . . . Hacking Detections 65 | . 3 . . 1 1 . 17 4 . 3 . 7 . 7 . 9 . 10 . 3 . . . Full Trace Events 6 | . 2 . . 1 . . 1 . . . . 2 . . . . . . . . . . . Feedback Events . | . . . . . . . . . . . . . . . . . . . . . . . . Feedback Blocked . | . . . . . . . . . . . . . . . . . . . . . . . . Robot Schematics Acquired . | . . . . . . . . . . . . . . . . . . . . . . . . Robots Built 3 | . . . . . . . . 3 . . . . . . . . . . . . . . . Matter 252 | . . . . . . . . 252 . . . . . . . . . . . . . . . Time 134 | . . . . . . . . 134 . . . . . . . . . . . . . . . Total Robot Build Rating 12 | . . . . . . . . 12 . . . . . . . . . . . . . . . Part Schematics Acquired 11 | . . . . . . . 9 . . . . 1 . 1 . . . . . . . . . Parts Built 9 | . . . . . . . . . . . . 1 . 2 . 2 . . . 4 . . . Matter 918 | . . . . . . . . . . . . 102 . 204 . 204 . . . 408 . . . Time 355 | . . . . . . . . . . . . 25 . 76 . 50 . . . 204 . . . Total Part Build Rating 9 | . . . . . . . . . . . . 1 . 2 . 2 . . . 4 . . . Parts Repaired 4 | . . . . . . . 1 . . 2 . . . . . 1 . . . . . . . Time 210 | . . . . . . . 22 . . 76 . . . . . 44 . . . 68 . . . Parts Recycled . | . . . . . . . . . . . . . . . . . . . . . . . . Recycled Matter . | . . . . . . . . . . . . . . . . . . . . . . . . Retrieved Matter . | . . . . . . . . . . . . . . . . . . . . . . . . Retrieved Components . | . . . . . . . . . . . . . . . . . . . . . . . . Parts Scanalyzed 10 | . . . . . . . 9 . . . . . . 1 . . . . . . . . . Part Schematics Acquired 10 | . . . . . . . 9 . . . . . . 1 . . . . . . . . . Parts Damaged 1 | . . . . . . . 1 . . . . . . . . . . . . . . . . Bothacking | -11 -10 -10 -10 -9 -8 -8 -8 -7 -7 -7 -7 -6 -6 -5 -5 -4 -4 -3 -3 -2 -1 -1 -1 ------------ Run | Scr Mat Min Exi Min Mat Gar Mat Fac Gar Fac Gar Fac Gar Fac Gar Fac Gar Res Gar Res Acc Gar Acc Used RIF Installer 8 | . . . . . . 1 . . 1 . 1 . 1 . 1 . 1 . 1 . . 1 . Hotswap 1 | . . . . . . . . . . . . . . . . . . . 1 . . . . Command Fork 1 | . . . . . . . . . 1 . . . . . . . . . . . . . . Watcher Feeds 1 | . . . . . . . . . . . 1 . . . . . . . . . . . . Alert ID Control 1 | . . . . . . . . . . . . . . . . . 1 . . . . . . Program Shield 1 | . . . . . . . . . . . . . 1 . . . . . . . . . . Autooverride 2 | . . . . . . . . . . . . . . . 1 . . . . . . 1 . Robots Hacked 263 | . . . . . . 3 23 10 8 12 16 10 19 1 14 8 12 19 20 6 12 31 39 Non-combat 78 | . . . . . . . 17 10 . 11 . 9 . . . 6 . 3 . 4 4 . 14 Combat 185 | . . . . . . 3 6 . 8 1 16 1 19 1 14 2 12 16 20 2 8 31 25 Autooverrided 33 | . . . . . . . . . . . . . . . 3 . 1 5 5 . . 7 12 Robot Hacks Applied 295 | . . . . . . 3 28 10 10 14 20 12 30 1 14 8 12 19 22 7 17 34 34 parse_system 16 | . . . . . . . . 1 2 . 2 1 2 . . 2 . . 1 . 2 2 1 no_distress 1 | . . . . . . . . . . 1 . . . . . . . . . . . . . generate_anomaly 1 | . . . . . . . 1 . . . . . . . . . . . . . . . . generate_echo 2 | . . . . . . . 2 . . . . . . . . . . . . . . . . find_chute 5 | . . . . . . . . 3 . . . 2 . . . . . . . . . . . deconstruct_machine 1 | . . . . . . . 1 . . . . . . . . . . . . . . . . hold_bot 1 | . . . . . . . . . . . . 1 . . . . . . . . . . . ignore_repairs 6 | . . . . . . . . . . 4 . . . . . . . . . . 2 . . map_walls 23 | . . . . . . . 4 3 . 2 . . . . . . . 2 . . 1 . 11 map_earth 1 | . . . . . . . 1 . . . . . . . . . . . . . . . . find_fabricator 3 | . . . . . . . . . . . . 2 . . . . . . . . 1 . . drop_inventory 17 | . . . . . . . 6 2 . 1 . 1 . . . 2 . . . 1 1 . 3 find_recycling 5 | . . . . . . . 1 1 . 1 . 1 . . . . . 1 . . . . . ignore_parts 8 | . . . . . . . . . . . . 2 . . . . . . . 2 . . 4 find_station 3 | . . . . . . . . . . 1 . . . . . 1 . . . 1 . . . deconstruct_bot 1 | . . . . . . . . . . 1 . . . . . . . . . . . . . summon_haulers 1 | . . . . . . . . . . 1 . . . . . . . . . . . . . map_route 1 | . . . . . . . 1 . . . . . . . . . . . . . . . . relay_feed 2 | . . . . . . . 2 . . . . . . . . . . . . . . . . find_shortcuts 1 | . . . . . . . . . 1 . . . . . . . . . . . . . . find_garrison 1 | . . . . . . . . . . . . . . . . . . . . . 1 . . link_fov 1 | . . . . . . . 1 . . . . . . . . . . . . . . . . reboot_propulsion 4 | . . . . . . . . . . . 1 . 1 . . . . . 1 . . 1 . tweak_propulsion 3 | . . . . . . . . . . . . . 1 . 1 . . . 1 . . . . scatter_targeting 3 | . . . . . . . . . . . 1 . . . . . . . . . . . 2 link_complan 1 | . . . . . . . 1 . . . . . . . . . . . . . . . . spike_heat 1 | . . . . . . . . . . . . . . . . . . 1 . . . . . overload_power 4 | . . . . . . . . . . . 2 . . . 1 . . . 1 . . . . amplify_resonance 1 | . . . . . . . . . . 1 . . . . . . . . . . . . . wipe_record 4 | . . . . . . . 1 . . . . . 1 . . . . 1 . . . 1 . disable_weapons 14 | . . . . . . . . . . . . . 5 . 1 . 1 . 3 . . 2 2 reboot_system 15 | . . . . . . . . . . . . . . 1 3 1 1 . 2 . 1 . 6 go_dormant 7 | . . . . . . . 2 . 1 . . . 1 . . . 3 . . . . . . overwrite_iff 106 | . . . . . . 2 2 . 4 . 12 1 19 . 8 1 7 13 12 . 5 19 1 streamctrl_high 2 | . . . . . . . . . . . . . . . . 1 . . . . 1 . . formatsys_high 29 | . . . . . . 1 2 . 2 1 2 1 . . . . . 1 1 3 2 9 4 Relay Couplers Released 127 | . . . . . . 14 . . 15 . 17 . 16 . 17 . 16 . 20 . . 12 . Machine Destruction 127 | . . . . . . 14 . . 15 . 17 . 16 . 17 . 16 . 20 . . 12 . Attached 76 | . . . . . . 3 6 . 3 2 6 2 6 1 4 2 4 7 6 5 3 14 2 Robots Rewired 15 | . . . . . . . . 1 . . . 1 . . . . 6 . . . . 7 . Allies Hacked 2 | . . . . . . . . . . . . 1 . . . . . . . 1 . . . Hacks Repelled . | . . . . . . . . . . . . . . . . . . . . . . . . Allies | -11 -10 -10 -10 -9 -8 -8 -8 -7 -7 -7 -7 -6 -6 -5 -5 -4 -4 -3 -3 -2 -1 -1 -1 -------- Run | Scr Mat Min Exi Min Mat Gar Mat Fac Gar Fac Gar Fac Gar Fac Gar Fac Gar Res Gar Res Acc Gar Acc Total Allies 192 | . . . . . . 3 4 4 5 3 17 6 19 . 12 2 17 18 17 3 7 40 15 Largest Group 9 | . . . . . . 1 1 4 3 3 6 3 4 . 4 1 5 2 3 1 2 9 6 Highest-Rated Group 569 | . . . . . . 16 29 120 67 57 118 58 79 . 116 56 237 128 193 64 130 569 383 Highest-Rated Ally 115 | . . . . . . 16 29 30 30 26 32 29 32 . 49 56 56 64 115 64 69 69 67 Total Orders 54 | . . . . . . 5 . 2 1 6 7 4 . . . . 10 . 1 2 . 16 . STAY 24 | . . . . . . 3 . 1 . 3 4 1 . . . . . . 1 1 . 10 . ROAM 5 | . . . . . . . . . . . . . . . . . 5 . . . . . . FOLLOW 21 | . . . . . . 2 . 1 . 3 2 1 . . . . 5 . . 1 . 6 . GUARD 2 | . . . . . . . . . 1 . 1 . . . . . . . . . . . . EXPLORE 1 | . . . . . . . . . . . . 1 . . . . . . . . . . . RETURN 1 | . . . . . . . . . . . . 1 . . . . . . . . . . . Ally Attacks 756 | . . . . . . 29 29 14 30 2 61 18 92 . 29 3 75 45 59 1 39 130 100 Total Damage 20498 | . . . . . . 399 459 366 570 55 803 287 1518 . 543 142 1097 1456 2497 33 1357 4284 4632 Kills 119 | . . . . . . 6 6 4 5 1 8 1 8 . 2 . 16 7 9 1 9 16 20 Allies Corrupted 3 | . . . . . . . . . . . . . . . . . . . . 1 . . 2 Allies Melted . | . . . . . . . . . . . . . . . . . . . . . . . . Intel | -11 -10 -10 -10 -9 -8 -8 -8 -7 -7 -7 -7 -6 -6 -5 -5 -4 -4 -3 -3 -2 -1 -1 -1 ------- Run | Scr Mat Min Exi Min Mat Gar Mat Fac Gar Fac Gar Fac Gar Fac Gar Fac Gar Res Gar Res Acc Gar Acc Robot Analysis Total 1 | . . . . . . . 1 . . . . . . . . . . . . . . . . Derelict Logs Recovered 3 | . . 2 . 1 . . . . . . . . . . . . . . . . . . . Drone Launches 1 | . . . . . . . . . . . . 1 . . . . . . . . . . . Drone Recoveries 1 | . . . . . . . . . . . . 1 . . . . . . . . . . . Exploration | -11 -10 -10 -10 -9 -8 -8 -8 -7 -7 -7 -7 -6 -6 -5 -5 -4 -4 -3 -3 -2 -1 -1 -1 ------------- Run | Scr Mat Min Exi Min Mat Gar Mat Fac Gar Fac Gar Fac Gar Fac Gar Fac Gar Res Gar Res Acc Gar Acc Turns Passed 37395 | 94 228 486 845 302 49 1801 2486 1479 2108 1771 1451 1507 1774 1112 2560 1524 3331 1606 1632 1003 1044 3844 3358 Spaces Moved 16983 | 70 170 399 703 209 35 810 1136 777 989 763 881 908 783 577 784 702 966 765 650 308 450 1674 1474 Core 35 | 9 . . . . . . . . . . . . . . . . . . . . . 26 . Treads 3034 | . . . . . . 430 406 34 65 . . . . . . . . . . . . 648 1451 Legs 634 | 61 170 105 . . . . . . . . . . . . . . . . . . . 298 . Wheels 13026 | . . 294 703 209 35 380 730 743 924 763 881 908 783 577 784 702 966 765 650 308 450 471 . Hover 34 | . . . . . . . . . . . . . . . . . . . . . . 34 . Flight 220 | . . . . . . . . . . . . . . . . . . . . . . 197 23 Fastest Speed 34 | 50 120 100 110 120 115 115 120 150 110 110 110 110 110 120 133 140 140 140 143 140 150 34 40 Average Speed 138 | 111 120 112 118 120 115 164 154 154 139 110 111 117 115 122 139 140 140 141 145 160 167 152 153 Slowest Speed 1400 | 120 120 120 120 120 120 240 200 220 220 130 120 130 120 160 160 140 140 170 153 260 200 1400 160 Overloaded Moves . | . . . . . . . . . . . . . . . . . . . . . . . . Propulsion Burnouts . | . . . . . . . . . . . . . . . . . . . . . . . . Robots Hopped 5 | . . . . . . . . 3 . . . . . . . . . . . . . . 2 Cave-ins Triggered 1 | . . . . . . . 1 . . . . . . . . . . . . . . . . Exploration Rate (%) 50 | 4 37 58 93 45 7 78 94 27 97 16 87 25 95 15 85 21 94 24 83 9 10 80 28 Regions Visited 23 Branch Regions 3 Pre-discovered Areas 2 | . . . 1 1 . . . . . . . . . . . . . . . . . . . Known Exits Taken 10 | . 1 . . . 1 . 1 1 . 1 . 1 . 1 . 1 . 1 . . 1 . . Unknown Exits Taken 5 | 1 . 1 1 1 . . . . . . . . . . . . . . . 1 . . . Scrap Searched 1 | . . 1 . . . . . . . . . . . . . . . . . . . . . Spaces Dug 235 | . 12 . . . . 1 49 28 37 15 . 10 . 19 4 13 1 25 . 5 15 . 1 Terrain Destroyed 393 | . 20 32 . 33 . 1 49 28 64 15 20 10 . 19 4 13 1 25 . 5 15 7 32 Melee 196 | . . . . . . 1 49 28 11 15 . 10 . 19 4 13 1 25 . 5 15 . . Projectile 27 | . . . . . . . . . . . . . . . . . . . . . . 7 20 AOE 170 | . 20 32 . 33 . . . . 53 . 20 . . . . . . . . . . . 12 Terrain Rammed . | . . . . . . . . . . . . . . . . . . . . . . . . Walls Destroyed . | . . . . . . . . . . . . . . . . . . . . . . . . Machines Disabled . | . . . . . . . . . . . . . . . . . . . . . . . . Actions | -11 -10 -10 -10 -9 -8 -8 -8 -7 -7 -7 -7 -6 -6 -5 -5 -4 -4 -3 -3 -2 -1 -1 -1 --------- Run | Scr Mat Min Exi Min Mat Gar Mat Fac Gar Fac Gar Fac Gar Fac Gar Fac Gar Res Gar Res Acc Gar Acc Total 28682 | 83 188 422 713 245 43 1148 1726 993 1573 1642 1273 1310 1541 920 2153 1172 2865 1174 1265 680 659 2690 2204 Wait 8288 | 2 5 4 1 25 . 158 345 119 324 815 209 341 555 269 1180 348 1588 264 464 228 113 619 312 Move 16958 | 69 169 398 702 208 35 809 1135 771 988 762 880 908 782 577 783 702 965 765 649 307 450 1673 1471 Hop 4 | . . . . . . . . 3 . . . . . . . . . . . . . . 1 Pick Up 366 | 6 4 3 7 . 3 26 47 8 13 3 14 5 18 11 24 29 58 12 14 17 9 17 18 Fast Attach 184 | 6 1 1 1 . . 7 8 10 9 1 1 3 1 2 4 3 6 1 3 7 10 62 37 Attach 116 | . . . . 2 2 8 8 3 3 2 3 3 3 3 3 5 5 11 8 17 2 15 10 Detach 67 | . . . . . 2 4 2 3 5 1 2 3 . 1 3 3 2 3 4 3 2 6 18 Swap 411 | . 3 7 . 1 1 14 29 9 39 7 23 7 37 13 35 18 24 26 15 18 9 23 53 Drop 254 | . 2 3 2 . . 17 24 13 24 1 11 5 17 4 12 9 21 7 5 9 4 25 39 Fire 787 | . 4 6 . 9 . 39 . 7 31 27 29 19 44 3 19 18 16 38 23 11 23 176 245 Melee 776 | . . . . . . 53 127 39 71 23 36 16 52 37 50 37 45 47 32 63 37 11 . Ram . | . . . . . . . . . . . . . . . . . . . . . . . . Kick . | . . . . . . . . . . . . . . . . . . . . . . . . Crush . | . . . . . . . . . . . . . . . . . . . . . . . . Escape Stasis 334 | . . . . . . 12 . 8 64 . 64 . 32 . 40 . 39 . 48 . . 27 . Rewire 137 | . . . . . . 1 1 . 2 . 1 . . . . . 96 . . . . 36 . Trap . | . . . . . . . . . . . . . . . . . . . . . . . . Miscellaneous . | . . . . . . . . . . . . . . . . . . . . . . . . Route ------- -11/Scrapyard -10/Materials (discovered 2 exits: [*Mat] / *Min) -10/Mines (discovered 2 exits: [*Mat] / *Exi) -10/Exiles (discovered 2 exits: *Min x2) -9/Mines -8/Materials (discovered 3 exits: Fac x2 / Gar) -8/Garrison (discovered 3 exits: *Mat x3) -8/Materials (discovered 3 exits: *Fac x3) -7/Factory (discovered 2 exits: *Fac / Gar) -7/Garrison (discovered 3 exits: *Fac x3) -7/Factory -7/Garrison (discovered 3 exits: *Fac x3) -6/Factory (discovered 4 exits: *Fac / [*Low x2] / Gar) -6/Garrison (discovered 3 exits: *Fac x3) -5/Factory -5/Garrison (discovered 3 exits: *Fac x3) -4/Factory (discovered 2 exits: [*Ext] / Gar) -4/Garrison (discovered 3 exits: *Res x3) -3/Research (discovered 3 exits: Res / [*Qua] / Gar) -3/Garrison (discovered 3 exits: *Res x3) -2/Research -1/Access -1/Garrison (discovered 2 exits: [*Acc x2]) -1/Access History --------- Turn | Location | Event 5 | -11/Scrapyard | Discovered new exit (range 16) 95 | -11/Scrapyard | Entered Materials 107 | -10/Materials | Identified exit to Mines 165 | -10/Materials | Discovered new exit (range 12) 312 | -10/Materials | Build established: Mutant 323 | -10/Materials | Entered Mines 339 | -10/Mines | Deemed a non-threat by the Exiles lab entrance 340 | -10/Mines | Discovered new exit (range 5) 474 | -10/Mines | A weapon hastily lodged in a ceiling crevice suddenly fell to the ground 559 | -10/Mines | Learned 8 Materials zone layouts 560 | -10/Mines | Discovered new exit (range 15) 594 | -10/Mines | Learned location of 1 exit from Materials 809 | -10/Mines | Entered Exiles 837 | -10/Exiles | Met 8R-AWN 856 | -10/Exiles | Met EX-HEX 974 | -10/Exiles | Met EX-DEC 1002 | -10/Exiles | Visited The Gauntlet 1145 | -10/Exiles | Learned location of Zion (-6) 1192 | -10/Exiles | Met EX-BIN 1205 | -10/Exiles | Build established: Hauler-Mutant 1249 | -10/Exiles | Aligned with FarCom system 1250 | -10/Exiles | Given EX-Vault access code 1288 | -10/Exiles | Opened EX-Vault 1298 | -10/Exiles | Found Cloak of Protection 1326 | -10/Exiles | Warned to stay clear of 0b10 Research branches 1471 | -10/Exiles | Discovered new exit (range 14) 1645 | -10/Exiles | Discovered new exit (range 10) 1654 | -10/Exiles | Left Exiles lab with Cloak of Protection 1654 | -10/Exiles | Entered Mines 1668 | -9/Mines | Learned location of Storage (-9) 1896 | -9/Mines | Discovered new exit (range 8) 1956 | -9/Mines | Entered Materials 1956 | -8/Materials | Evolved 4 slots: Utility x4 1957 | -8/Materials | Identified exit to Factory 2005 | -8/Materials | Identified exit to Garrison 2005 | -8/Materials | Entered Garrison 2154 | -8/Garrison | Triggered checkpoint 2206 | -8/Garrison | Garrison Relay disabled 2404 | -8/Garrison | Triggered checkpoint 2625 | -8/Garrison | Discovered new exit (range 10) 2645 | -8/Garrison | Installed Relay Interface Framework 2734 | -8/Garrison | Triggered checkpoint 2817 | -8/Garrison | Lost 4 parts (1p2n1w) 2847 | -8/Garrison | Garrison Relay disabled 2990 | -8/Garrison | Triggered checkpoint 3052 | -8/Garrison | Triggered checkpoint 3150 | -8/Garrison | Build established: Bothacker-Mutant 3198 | -8/Garrison | Triggered checkpoint 3247 | -8/Garrison | Garrison Relay disabled 3306 | -8/Garrison | Triggered checkpoint 3312 | -8/Garrison | Discovered new exit (range 15) 3548 | -8/Garrison | Core integrity fell below 50% 3642 | -8/Garrison | Triggered checkpoint 3689 | -8/Garrison | Garrison Relay disabled 3744 | -8/Garrison | Discovered new exit (range 10) 3806 | -8/Garrison | Entered Materials 4900 | -8/Materials | Discovered exit to Factory (range 14) 5309 | -8/Materials | Crushed by falling debris 5309 | -8/Materials | System corruption reached 10% 5357 | -8/Materials | Lost 4 parts (1n3u) 5697 | -8/Materials | Discovered exit to Factory (range 15) 6150 | -8/Materials | Discovered exit to Factory (range 13) 6222 | -8/Materials | Core integrity fell below 20% 6276 | -8/Materials | Repaired Chainsword 6292 | -8/Materials | Entered Factory 6292 | -7/Factory | Evolved 2 slots: Propulsion x1, Utility x1 7014 | -7/Factory | Build established: Bothacker-Assassin 7071 | -7/Factory | Fabricated L-41 Fighter? 7429 | -7/Factory | Discovered new exit (range 9) 7705 | -7/Factory | Garrison activated, responded to threat 7770 | -7/Factory | Identified exit to Garrison 7771 | -7/Factory | Entered Garrison 7771 | -7/Garrison | Accompanied by 1 ally 8050 | -7/Garrison | Triggered checkpoint 8104 | -7/Garrison | Garrison Relay disabled 8156 | -7/Garrison | Build established: Bothacker-Mutant 8368 | -7/Garrison | Triggered checkpoint 8602 | -7/Garrison | Triggered checkpoint 8751 | -7/Garrison | Triggered checkpoint 8760 | -7/Garrison | Triggered checkpoint 8788 | -7/Garrison | Destroyed 8 combat bots 8834 | -7/Garrison | Discovered new exit (range 12) 8856 | -7/Garrison | Expanded RIF knowledge: Command Fork 8980 | -7/Garrison | Triggered checkpoint 9017 | -7/Garrison | Garrison Relay disabled 9079 | -7/Garrison | Discovered new exit (range 14) 9122 | -7/Garrison | Build established: Bothacker-Assassin 9435 | -7/Garrison | Garrison Relay disabled 9615 | -7/Garrison | Discovered new exit (range 3) 9637 | -7/Garrison | Build established: Bothacker-Mutant 9727 | -7/Garrison | Triggered checkpoint 9836 | -7/Garrison | Found Unknown Device 9879 | -7/Garrison | Entered Factory 10176 | -7/Factory | Build established: Bothacker-Assassin 10777 | -7/Factory | Repaired Arm. Wheel 10940 | -7/Factory | Identified exit to Garrison 11053 | -7/Factory | Repaired Med. Reactive Plating 11142 | -7/Factory | Build established: Bothacker-Mutant 11650 | -7/Factory | Entered Garrison 11650 | -7/Garrison | Accompanied by 3 allies 11656 | -7/Garrison | Expanded RIF knowledge: Patrol Navigation 11913 | -7/Garrison | Triggered checkpoint 11959 | -7/Garrison | Garrison Relay disabled 12054 | -7/Garrison | Triggered checkpoint 12482 | -7/Garrison | Discovered new exit (range 8) 12534 | -7/Garrison | Triggered checkpoint 12564 | -7/Garrison | Garrison Relay disabled 12690 | -7/Garrison | Discovered new exit (range 8) 12732 | -7/Garrison | Triggered checkpoint 12782 | -7/Garrison | Garrison Relay disabled 12860 | -7/Garrison | Triggered checkpoint 12913 | -7/Garrison | Discovered new exit (range 15) 12928 | -7/Garrison | Triggered checkpoint 12969 | -7/Garrison | Garrison Relay disabled 13101 | -7/Garrison | Entered Factory 13101 | -6/Factory | Evolved 2 slots: Utility x2 13322 | -6/Factory | Discovered new exit (range 15) 13399 | -6/Factory | Build established: Bothacker-Assassin 13940 | -6/Factory | Fabricated Humpback (x1) 14078 | -6/Factory | Build established: Bothacker-Mutant 14396 | -6/Factory | Discovered new exit (range 21) 14480 | -6/Factory | Discovered new exit (range 88) 14608 | -6/Factory | Identified exit to Garrison 14608 | -6/Factory | Entered Garrison 14615 | -6/Garrison | Expanded RIF knowledge: Program Shield 14851 | -6/Garrison | Garrison Relay disabled 14864 | -6/Garrison | Triggered checkpoint 14992 | -6/Garrison | Triggered checkpoint 15166 | -6/Garrison | Triggered checkpoint 15166 | -6/Garrison | Spotted B-75 Beast 15252 | -6/Garrison | Build established: Botlord-Mutant 15382 | -6/Garrison | Discovered new exit (range 16) 15482 | -6/Garrison | Garrison Relay disabled 15666 | -6/Garrison | Triggered checkpoint 15678 | -6/Garrison | Garrison Relay disabled 15727 | -6/Garrison | Discovered new exit (range 10) 15890 | -6/Garrison | Triggered checkpoint 15988 | -6/Garrison | Garrison Relay disabled 16128 | -6/Garrison | Triggered checkpoint 16367 | -6/Garrison | Discovered new exit (range 12) 16382 | -6/Garrison | Entered Factory 16382 | -5/Factory | Evolved 2 slots: Utility x2 16689 | -5/Factory | Build established: Botlord-Assassin 16789 | -5/Factory | Fabricated Hcp. Storage Unit (x1) 17123 | -5/Factory | Fabricated Humpback (x1) 17480 | -5/Factory | Build established: Botlord-Mutant 17494 | -5/Factory | Identified exit to Garrison 17494 | -5/Factory | Entered Garrison 17501 | -5/Garrison | Expanded RIF knowledge: Autooverride 17618 | -5/Garrison | Triggered checkpoint 17715 | -5/Garrison | Garrison Relay disabled 17829 | -5/Garrison | Spotted B-75 Beast 17920 | -5/Garrison | Triggered checkpoint 17930 | -5/Garrison | Triggered checkpoint 18089 | -5/Garrison | Found Adv. Powered Armor 18092 | -5/Garrison | Found Adv. Powered Armor 18095 | -5/Garrison | Found Adv. Powered Armor 18098 | -5/Garrison | Found Antimissile System 18110 | -5/Garrison | Spotted B-75 Beast 18255 | -5/Garrison | Discovered new exit (range 5) 18288 | -5/Garrison | Triggered checkpoint 18303 | -5/Garrison | Garrison Relay disabled 18494 | -5/Garrison | Triggered checkpoint 18532 | -5/Garrison | Garrison Relay disabled 18631 | -5/Garrison | Discovered new exit (range 16) 19178 | -5/Garrison | Discovered new exit (range 14) 19217 | -5/Garrison | Garrison Relay disabled 19236 | -5/Garrison | Triggered checkpoint 20054 | -5/Garrison | Entered Factory 20054 | -4/Factory | Evolved 2 slots: Utility x2 20353 | -4/Factory | Build established: Botlord-Assassin 20627 | -4/Factory | Repaired Rnf. Deuterium Engine 20828 | -4/Factory | Fabricated Humpback (x1) 20960 | -4/Factory | Build established: Botlord-Mutant 21055 | -4/Factory | Discovered new exit (range 14) 21346 | -4/Factory | Fabricated Humpback (x1) 21578 | -4/Factory | Identified exit to Garrison 21578 | -4/Factory | Entered Garrison 21710 | -4/Garrison | Triggered checkpoint 21798 | -4/Garrison | Garrison Relay disabled 22091 | -4/Garrison | Build established: Botlord-Assassin 23436 | -4/Garrison | Triggered checkpoint 23602 | -4/Garrison | Garrison Relay disabled 23667 | -4/Garrison | Discovered new exit (range 15) 23876 | -4/Garrison | Discovered new exit (range 20) 23975 | -4/Garrison | Expanded RIF knowledge: Alert ID Control 24358 | -4/Garrison | Triggered checkpoint 24408 | -4/Garrison | Garrison Relay disabled 24454 | -4/Garrison | Triggered checkpoint 24462 | -4/Garrison | Triggered checkpoint 24690 | -4/Garrison | Garrison Relay disabled 24725 | -4/Garrison | Discovered new exit (range 8) 24909 | -4/Garrison | Entered Research 24909 | -3/Research | Evolved 2 slots: Utility x2 25054 | -3/Research | Discovered new exit (range 24) 25224 | -3/Research | Spotted B-86 Titan 25340 | -3/Research | Spotted B-86 Titan 25914 | -3/Research | System corruption reached 10% 25929 | -3/Research | Discovered new exit (range 22) 25948 | -3/Research | Lost 3 parts (1n2u) 26418 | -3/Research | Garrison activated, responded to threat 26498 | -3/Research | Build established: Botlord-Mutant 26515 | -3/Research | Identified exit to Garrison 26515 | -3/Research | Entered Garrison 26564 | -3/Garrison | Triggered checkpoint 26681 | -3/Garrison | Garrison Relay disabled 26804 | -3/Garrison | Triggered checkpoint 26870 | -3/Garrison | Spotted B-86 Titan 26930 | -3/Garrison | Assimilated Titan 8a with formatsys_high 26976 | -3/Garrison | Spotted B-86 Titan 27022 | -3/Garrison | Triggered checkpoint 27134 | -3/Garrison | Garrison Relay disabled 27247 | -3/Garrison | Garrison Relay disabled 27248 | -3/Garrison | Build established: Botlord-Assassin 27324 | -3/Garrison | Discovered new exit (range 15) 27412 | -3/Garrison | Triggered checkpoint 27475 | -3/Garrison | Triggered checkpoint 27674 | -3/Garrison | Discovered new exit (range 23) 27746 | -3/Garrison | Triggered checkpoint 27801 | -3/Garrison | Garrison Relay disabled 27941 | -3/Garrison | Discovered new exit (range 15) 27992 | -3/Garrison | Triggered checkpoint 28077 | -3/Garrison | Garrison Relay disabled 28142 | -3/Garrison | Expanded RIF knowledge: Hotswap 28147 | -3/Garrison | Entered Research 28147 | -2/Research | Evolved 2 slots: Utility x2 28244 | -2/Research | Fabricated Humpback (x1) 28301 | -2/Research | Fabricated Humpback (x1) 28355 | -2/Research | Fabricated Humpback (x1) 28419 | -2/Research | Fabricated Humpback (x1) 28529 | -2/Research | System corruption reached 10% 28991 | -2/Research | P-80 Master assimilated allied Director 9a 29030 | -2/Research | System corruption reached 30% 29085 | -2/Research | Discovered new exit (range 14) 29097 | -2/Research | Lost 12 parts (1p2n9u) 29150 | -2/Research | Entered Access 29150 | -1/Access | Accompanied by 1 ally 29150 | -1/Access | Evolved 2 slots: Utility x2 30014 | -1/Access | Build established: Botlord-Mutant 30141 | -1/Access | Garrison activated, responded to threat 30189 | -1/Access | Identified exit to Garrison 30194 | -1/Access | Entered Garrison 30194 | -1/Garrison | Accompanied by 1 ally 30364 | -1/Garrison | Triggered checkpoint 30665 | -1/Garrison | Garrison Relay disabled 30804 | -1/Garrison | Triggered checkpoint 30804 | -1/Garrison | Triggered checkpoint 31003 | -1/Garrison | Spotted B-99 Colossus 31215 | -1/Garrison | Triggered checkpoint 31242 | -1/Garrison | Triggered checkpoint 31404 | -1/Garrison | Lost 5 parts (2n2u1w) 31503 | -1/Garrison | Lost 14 parts (1p1n9u3w) 31784 | -1/Garrison | Core integrity fell below 50% 31825 | -1/Garrison | Lost 11 parts (1p3n3u4w) 32204 | -1/Garrison | Lost 7 parts (1p3n3w) 32511 | -1/Garrison | Lost 5 parts (3n2w) 32523 | -1/Garrison | Destroyed B-99 Colossus 32826 | -1/Garrison | Triggered checkpoint 32980 | -1/Garrison | Garrison Relay disabled 33093 | -1/Garrison | Discovered new exit (range 4) 33334 | -1/Garrison | Triggered checkpoint 33351 | -1/Garrison | Garrison Relay disabled 33549 | -1/Garrison | Discovered new exit (range 19) 33599 | -1/Garrison | Expanded RIF knowledge: Autooverride 33804 | -1/Garrison | Spotted B-99 Colossus 34038 | -1/Garrison | Entered Access 34038 | -1/Access | Accompanied by 6 allies 34303 | -1/Access | Garrison activated, responded to threat 34322 | -1/Access | Garrison activated, responded to threat 35169 | -1/Access | Found Unknown Device 35169 | -1/Access | Identified Quantum Capacitor 35307 | -1/Access | Found Unknown Launcher 35307 | -1/Access | Identified Gamma Bomb Array 35770 | -1/Access | Garrison activated, responded to threat 36362 | -1/Access | System corruption reached 10% 36568 | -1/Access | First assault squad dispatched 36596 | -1/Access | Garrison activated, responded to threat 37028 | -1/Access | Spotted B-99 Colossus 37208 | -1/Access | Core integrity fell below 20% 37280 | -1/Access | Found Prototype Processor 37280 | -1/Access | Identified Exp. Signal Interpreter 37293 | -1/Access | Lost 6 parts (3u3w) 37354 | -1/Access | Lost 3 parts (2n1u) 37394 | -1/Access | Spotted B-99 Colossus 37396 | -1/Access | Destroyed by B-99 Colossus with Multirail Last Messages --------------- 37382_ Dropped Lrg. Storage Unit. 37384_ Dropped Imp. Arc Projector. 37385_ Acquired KE Penetrator. 37389_ Slug penetrates Wall. 37389_ Knocked back. 37389_ Slug penetrates Wave Collapse Detector. 37389_ Penetrated by Slug. 37389_ Slug penetrates Wall. 37393_ Penetrated by Slug. 37393_ Slug penetrates Wall. 37394_ B-99 Colossus activates siege mode. 37395_ Penetrated by Slug. 37395_ Slug penetrates Wall. 37395_ Slug penetrates Sealed Heavy Doors. 37395_ Penetrated by Slug. 37395_ Slug penetrates Wall. 37396_ System corrupted: Heat flow error (+166). 37396_ Nuclear Pulse Array destroyed. 37396_ Knocked back. 37396_ KE Penetrator destroyed. Map ----- +----------------------------------------------------+ | ???????## # ?## |!^ # #?# | | ???????+? # ?## |!% # #?# | | ???????## # ??## !# #?# | | ???????## # ??## # #?# | | ???????### ## ???## # #?# | | ???????#?# ################ % # ### | | ???????#?# #???????????# # %%#####+##### | | ########?# #???????????## # !!!* | | ######## #????????????# # %%!%* | | + #????????????# ############%!| | | # #????????????##############%=% | | # ###### #???????????????????????#?#!*= | | # #????# #???????????????????????###%[ | | # #????# #?????????????????????????# | | # #????# #?????????????????????????# | | # #????# #???????????????????????### | | # #????# #???????????????????????#T# | | # #????# #???????????????????????" | | #%#?####+#####????????????????????" | | ###!#?# * #????????????????????#### %######+# | | ??#=#?# #???????????????????????# !#??????? | | ??# #?# #???????????????????????# #??????? | | ??# #?# ! #####???????????????#???# #??????? | | ??# #?# ;BB #####"""###;# BB#???# #??????? | | ??# ###]= " #BB [ ! BB#???# #??????? | | ?## ###!][""" # %!@[%! #???# ######## | | ## ##!=""" # * [=[ #???# #???# | | |[+[! " #########"""#########???# #???# | | !################### #?########??# #???# | | ! ####### ## #?# #### #???# | | ! + ## #?# + #???# | | ######### ! ## #?# | #### #???# | | ????????# | ## #?# #??# #???# | | ????????# ## *#?# #??# #???# | | ####????# ## = ### #??# #???#### | | =! #????###+####+##+### =[#####+###??# #??????? | | ! #??????# #### #???# #??????? | | !! #??????# #???# #??????? | | ############# #???# #??????? | | ## !############ #### #???# #??????? | | ## # ########## #???# #????### | | ## # # # #???# #??????? | | ## # # + #???# #??????? | | #######+# """"" # " # #???# #??????? | | # # """"" #== """ #% #???# #??????? | | # # = """"" +%*""" # #???# #??????? | | # # """"" # " # #???# #??????? | | / + """"" # # #???# #??????? | | # # ! # # #???# #??????? | | # # # " # #???# #????### | +----------------------------------------------------+ Best States ------------- Heat Dissipation 71 Energy Generation 29 Energy Capacity 350 Matter Stores 300 Matter Capacity 300 Sight Range 20 Terrain Scan Range 24 Terrain Scan Density 210 Cloak Strength 5 Armor Coverage 2400 Resistance: KI 30 Resistance: TH 30 Resistance: EX 50 Core Shielding 20 Utility Shielding 66 Point Defense Rating 240 Evasion (%) 63 Targeting Accuracy 24 Melee Accuracy 8 Target Analysis 8 Armor Integrity Analysis 33 Recoil Reduction 3 Stasis Canceling 1 Offensive Hacking 10 Relay Coupler Types 432 Relay Coupler Value 10 Item Schematics ----------------- Chainsword | -8/Materials | Scanalyzed Humpback | -8/Materials | Scanalyzed Rocket Launcher | -8/Materials | Scanalyzed Lgt. Deuterium Engine | -8/Materials | Scanalyzed Arm. Treads | -8/Materials | Scanalyzed Hcp. Storage Unit | -8/Materials | Scanalyzed Adv. Treads | -8/Materials | Scanalyzed Scythe | -8/Materials | Scanalyzed Hvy. Ion Engine | -8/Materials | Scanalyzed Adv. Datajack | -6/Factory | Hacked Drone Bay | -5/Factory | Scanalyzed Robot Schematics ------------------ None Fabricated ------------ L-41 Fighter | x3 | -7/Factory | Preloaded Humpback | x1 | -6/Factory Hcp. Storage Unit | x1 | -5/Factory Humpback | x1 | -5/Factory Humpback | x1 | -4/Factory Humpback | x1 | -4/Factory Humpback | x1 | -2/Research Humpback | x1 | -2/Research Humpback | x1 | -2/Research Humpback | x1 | -2/Research Alien Tech Used ----------------- None Achievements -------------- Assassin Collateral Damage Factory Defaults Origins Packrat Preemptive Strike Turtlemind Challenges ------------ None Game ------ Seed IonicDroneVibroblade Manual? 0 Play Time 12:12:14 Cumulative 119.9 hours Start 2021.07.19 @ 15:11:23 End 2021.07.21 @ 10:57:43 Sessions 13 Manual Loads 0 Difficulty Rogue Special Mode None Game No. 28 Rogue 28 Adventurer 0 Explorer 0 Win Type - Total 0 Types 0/0/0/0/0/0/0/0/0 Lore% 36 Gallery% 56 Achievement% 42 Wizard Run 0 Options --------- ASCII 0 Keyboard 1 Movement Numpad Keybinds 0 Fullscreen 1 Font 18/SmallcapsGlow Map View 76x50 Tactical HUD 1 Map Filters NONE Filters NONE Steam 1 RUN: 08a43f57-f4a8-42cc-bd9b-5b7ad4ac826a